Cogmind - Beta 13 @@@ ROGUE MODE // 2024.04.26 @ 15:52:54 Player: graour Result: Core destroyed Performance ------------- Evolutions (7) 3500 Regions Visited (10) 2000 Robots Destroyed (76) 380 Value Destroyed (1652) 1652 Prototype IDs (28) 560 Alien Tech Used (0) 0 Bonus (332) 332 TOTAL SCORE: 8424 Bonus ------- High Alert Combat Kills 11 Follower Combat Kills 28 Aligned with FarCom 300 Friendly Fire -7 Cogmind --------- Core Integrity 0/1300 Matter 89/300 Energy 100/100 System Corruption 11% Temperature Cool (0) Movement Core (50) Location -3/Research Parts ------- > --- POWER (1) -------- (None) > --- PROPULSION (2) --- (None) > --- UTILITY (16) ----- Improved Signal Interpreter Advanced Signal Interpreter Improved Melee Analysis Suite Hacking Suite > --- WEAPON (2) ------- (None) > --- INVENTORY (5) ---- Seismic Detector HERF Cannon Compact HERF Cannon Railgun Enhanced Gauss Cannon Peak State ------------ > --- POWER ------------ (None) > --- PROPULSION ------- (None) > --- UTILITY ---------- Coolant Network Improved Signal Interpreter Advanced Signal Interpreter Improved Melee Analysis Suite Hacking Suite > --- WEAPON ----------- Railgun Enhanced Gauss Cannon > --- INVENTORY -------- Seismic Detector HERF Cannon Compact HERF Cannon [Rating: 47] Favorites ----------- Power Light Ion Engine Engine Light Ion Engine Propulsion None Utility Hacking Suite Device Advanced Terrain Scanner Processor Machine Analyzer Hackware Hacking Suite Weapon Longsword +1 Energy Cannon HERF Cannon Ballistic Gun Light Assault Rifle Ballistic Cannon Advanced Assault Cannon Launcher Rocket Launcher Slashing Weapon Longsword +1 Build | -11 -10 -10 -10 -9 -8 -7 -6 -5 -4 -3 ------- Run | Yrd Mat Min Exi Min Mat Fac Fac Fac Fac Res Slots Evolved 14 | . . . . . 4 2 2 2 2 2 Power . | . . . . . . . . . . . Propulsion . | . . . . . . . . . . . Utility 14 | . . . . . 4 2 2 2 2 2 Weapon . | . . . . . . . . . . . Parts Attached 58 | 2 11 2 . . 11 5 7 2 3 15 Power 2 | . . . . . 1 1 . . . . Engine 2 | . . . . . 1 1 . . . . Core . | . . . . . . . . . . . Reactor . | . . . . . . . . . . . Propulsion . | . . . . . . . . . . . Treads . | . . . . . . . . . . . Leg . | . . . . . . . . . . . Wheel . | . . . . . . . . . . . Hover . | . . . . . . . . . . . Flight . | . . . . . . . . . . . Utility 26 | . 3 1 . . 6 4 5 1 1 5 Device 8 | . . 1 . . . 2 2 . . 3 Storage . | . . . . . . . . . . . Processor 11 | . 2 . . . 3 2 2 1 . 1 Hackware 7 | . 1 . . . 3 . 1 . 1 1 Protection . | . . . . . . . . . . . Artifact . | . . . . . . . . . . . Weapon 30 | 2 8 1 . . 4 . 2 1 2 10 Energy Gun . | . . . . . . . . . . . Energy Cannon 3 | . . . . . . . . . . 3 Ballistic Gun 13 | 2 8 1 . . . . . . . 2 Ballistic Cannon 8 | . . . . . 1 . . 1 2 4 Launcher 3 | . . . . . 1 . 1 . . 1 Special Weapon . | . . . . . . . . . . . Impact Weapon . | . . . . . . . . . . . Slashing Weapon 3 | . . . . . 2 . 1 . . . Piercing Weapon . | . . . . . . . . . . . Special Melee Weapon . | . . . . . . . . . . . Unidentified Prototypes 5 | . . 1 . . . 1 . . . 3 Corrupted Parts 1 | . . . . . . . . . . 1 System Corruption 1 | . . . . . . . . . . 1 Parts Lost 21 | . . . . . 2 . 6 2 1 10 Power 1 | . . . . . 1 . . . . . Propulsion . | . . . . . . . . . . . Utility 14 | . . . . . . . 4 1 1 8 Weapon 6 | . . . . . 1 . 2 1 . 2 Highest Loss Streak 6 | . . . . . 1 . 6 1 1 4 To Critical Strikes . | . . . . . . . . . . . Average Slot Usage (%) 51 | . 51 45 42 42 56 60 67 56 45 27 Device 3 | . . 12 14 14 . 2 5 5 5 1 Processor 17 | . 21 1 . . 16 19 25 27 20 13 Hackware 18 | . 1 14 14 14 29 30 28 17 18 10 Ballistic Gun 5 | . 28 17 14 14 . . . . . . Slashing Weapon 3 | . . . . . 8 7 6 4 . . Naked Turns . | . . . . . . . . . . . Heaviest Build 11 | 3 4 4 2 2 7 3 11 3 7 11 Greatest Support 9 | 3 3 3 3 3 3 9 3 3 3 3 Greatest Overweight (x) 3 | . 1 1 . . 2 . 3 . 2 3 Average Overweight (x) . | . . . . . . . . . . . Largest Inventory Capacity 5 | 5 5 5 5 5 5 5 5 5 5 5 Average Capacity 5 | 5 5 5 5 5 5 5 5 5 5 5 Most Carried 5 | 2 5 5 5 5 5 5 5 3 3 5 Average Carried 4 | 1 4 4 4 5 4 4 4 2 2 3 Final Capacity 5 | 5 5 5 5 5 5 5 5 5 5 5 Final Carried 5 | 2 5 5 5 5 5 5 3 3 3 5 Class Distribution -------------------- 59% | Hacker-Scout 29% | Mutant 5% | Hacker-Mutant 4% | Scout Dominant Class ---------------- Mutant | -10/Materials Mutant | -10/Mines Mutant | -10/Exiles Scout | -9/Mines Hacker-Scout | -8/Materials Hacker-Scout | -7/Factory Hacker-Scout | -6/Factory Hacker-Scout | -5/Factory Hacker-Scout | -4/Factory Mutant | -3/Research Resources | -11 -10 -10 -10 -9 -8 -7 -6 -5 -4 -3 ----------- Run | Yrd Mat Min Exi Min Mat Fac Fac Fac Fac Res Matter Collected 1090 | 220 222 68 . . 182 50 85 48 . 215 Remotely . | . . . . . . . . . . . Salvage Created 2131 | . 346 59 . . 830 166 346 133 4 247 Parts 168 | . 35 2 . . 67 11 19 16 2 16 Haulers Intercepted 4 | . . . . . 3 1 . . . . Recyclers Shooed . | . . . . . . . . . . . Parts Field Recycled . | . . . . . . . . . . . Retrieved Matter . | . . . . . . . . . . . Parts Self-Destructed . | . . . . . . . . . . . Prevented . | . . . . . . . . . . . Kills | -11 -10 -10 -10 -9 -8 -7 -6 -5 -4 -3 ------- Run | Yrd Mat Min Exi Min Mat Fac Fac Fac Fac Res Combat Hostiles Destroyed 42 | . 13 1 . . 14 1 2 2 . 9 Melee 11 | . . . . . 7 1 2 1 . . Guns 14 | . 13 1 . . . . . . . . Cannons 5 | . . . . . . . . 1 . 4 AOE 12 | . . . . . 7 . . . . 5 Classes Destroyed 12 | . 5 . . . 6 . 1 . . . Worker 8 | . 1 . . . 6 . 1 . . . Builder 4 | . . . . . 3 . 1 . . . Tunneler 4 | . . . . . 2 1 . 1 . . Hauler 4 | . . . . . 3 1 . . . . Recycler 2 | . . . . . 1 . 1 . . . Mechanic 1 | . . . . . 1 . . . . . Operator 5 | . 1 . . . . 1 1 . 1 1 Watcher 6 | . 2 . . . 2 . 1 1 . . Swarmer 27 | . 8 . . . 11 . . . . 8 Grunt 6 | . 5 1 . . . . . . . . Sentry 6 | . . . . . 3 1 1 . . 1 Programmer 3 | . . . . . . . 1 2 . . Best Kill Streak 9 | . 8 1 . . 9 1 3 2 1 6 Combat Bots Only 8 | . 3 1 . . 8 1 1 1 . 5 Max Kills in Single Turn 4 | . 1 1 . . 3 1 1 1 1 4 Gunslinging . | . . . . . . . . . . . Exploded 4 | . . . . . 3 . . . . 4 Melee 1 | . . . . . 1 1 1 1 . . Uniques/NPCs Destroyed . | . . . . . . . . . . . Combat | -11 -10 -10 -10 -9 -8 -7 -6 -5 -4 -3 -------- Run | Yrd Mat Min Exi Min Mat Fac Fac Fac Fac Res Hostile Shots Fired 401 | . 58 4 . . 65 27 63 26 25 133 Missed 121 | . 16 . . . 20 6 20 7 8 44 Damage Taken 4870 | . 414 64 . . 472 165 609 453 456 2237 Core 2922 | . 219 14 . . 208 127 350 366 338 1300 Absorbed by Shields . | . . . . . . . . . . . Regen/Repaired (Parts) 116 | . . . . . . . . . . 116 Core Remaining (%) 62 | 100 . . . 6 62 81 58 63 70 . Volleys Fired 100 | . 47 4 . 1 11 . 1 3 8 25 Largest 2 | . 2 2 . 1 1 . 1 1 1 2 Hottest 105 | . 40 40 . 20 33 . 43 48 48 105 Shots Fired 163 | . 94 8 . 1 11 . 1 3 8 37 Gun 111 | . 94 8 . 1 4 . . . . 4 Cannon 42 | . . . . . . . . 3 8 31 Launcher 10 | . . . . . 7 . 1 . . 2 Special . | . . . . . . . . . . . Kinetic 151 | . 94 8 . 1 4 . . 3 8 33 Thermal . | . . . . . . . . . . . Explosive 10 | . . . . . 7 . 1 . . 2 Electromagnetic 2 | . . . . . . . . . . 2 Robot Hit Streak 12 | . 12 7 . 8 3 . . 3 1 6 Robot Miss Streak 6 | . 5 1 . . 2 . . . 1 6 Penetration Max . | . . . . . . . . . . . Secondary Targets 3 | . 3 . . . . . . . . . Max Gunslinging Chain 1 | . 1 . . . . . . . . . Shots Hit Robots 180 | . 66 7 . 1 49 9 20 8 1 19 Core Hits 101 | . 28 3 . 1 27 3 6 7 1 25 Critical Kills . | . . . . . . . . . . . Critical Parts Destroyed . | . . . . . . . . . . . Critical Strikes 7 | . . . . . 3 1 1 1 . 1 Blast 2 | . . . . . . . . 1 . 1 Sever 5 | . . . . . 3 1 1 . . . Melee Attacks 144 | . . . . . 68 22 40 14 . . Impact . | . . . . . . . . . . . Slashing 144 | . . . . . 68 22 40 14 . . Piercing . | . . . . . . . . . . . Sneak Attacks 23 | . . . . . 15 3 4 1 . . Combat Hostiles . | . . . . . . . . . . . Follow-up Attacks . | . . . . . . . . . . . Damage Inflicted 6796 | . 654 74 . 6 3220 610 1039 306 37 850 Guns 756 | . 654 74 . 6 22 . . . . . Cannons 671 | . . . . . . . . 96 24 551 Explosions 814 | . . . . . 512 . 55 . . 247 Melee 4473 | . . . . . 2686 610 984 193 . . Ramming 82 | . . . . . . . . 17 13 52 Kinetic 1338 | . 654 74 . 6 22 . . 96 24 462 Thermal . | . . . . . . . . . . . Explosive 814 | . . . . . 512 . 55 . . 247 Electromagnetic 89 | . . . . . . . . . . 89 Impact . | . . . . . . . . . . . Slashing 4473 | . . . . . 2686 610 984 193 . . Piercing . | . . . . . . . . . . . Highest Corruption 11 | . 1 1 1 1 . . 3 1 1 11 Average Corruption 1 | . 1 1 1 1 . . 2 1 1 2 Corruption Purged . | . . . . . . . . . . . Corruption Blocked . | . . . . . . . . . . . Effects 10 | . . 1 2 1 . . 2 . . 4 Message Errors 2 | . . . . . . . . . . 2 Matter Fused 1 | . . . . . . . . . . 1 Heat Flow Errors 4 | . . . 2 1 . . 1 . . . Energy Discharges 1 | . . . . . . . . . . 1 Data Loss (major) 2 | . . 1 . . . . 1 . . . Overload Shots . | . . . . . . . . . . . Overflow Damage 857 | . . . . . 455 130 263 . . 9 Projectiles . | . . . . . . . . . . . Explosions 14 | . . . . . 5 . . . . 9 Melee 843 | . . . . . 450 130 263 . . . Knockbacks 7 | . . . . . . . . 2 . 5 Impact . | . . . . . . . . . . . Kinetic 6 | . . . . . . . . 2 . 4 Secondary 1 | . . . . . . . . . . 1 Self-Inflicted Damage 292 | . . . . . . . . 6 5 281 Shots 11 | . . . . . . . . . . 11 Rammed 26 | . . . . . . . . 6 4 16 Targets Rammed 26 | . . . . . . . . 6 4 16 Kicked . | . . . . . . . . . . . Crushed . | . . . . . . . . . . . Highest Temperature 212 | . 1 4 207 111 2 . 212 8 . 48 Average Temperature 61 | . 1 4 93 61 2 . 122 8 . 20 Received Heat Transfer 632 | . 48 36 . . 99 54 60 12 36 287 Siege Activations . | . . . . . . . . . . . Robots Corrupted . | . . . . . . . . . . . Combat Hostiles . | . . . . . . . . . . . Parts Fried 1 | . . . . . . . . . . 1 Impact Corruptions . | . . . . . . . . . . . Robots Melted . | . . . . . . . . . . . Combat Hostiles . | . . . . . . . . . . . Parts Melted . | . . . . . . . . . . . Heat Transferred . | . . . . . . . . . . . Parts Sabotaged . | . . . . . . . . . . . Parts Stolen . | . . . . . . . . . . . Parts Stripped . | . . . . . . . . . . . Power Chain Reactions . | . . . . . . . . . . . Alert | -11 -10 -10 -10 -9 -8 -7 -6 -5 -4 -3 ------- Run | Yrd Mat Min Exi Min Mat Fac Fac Fac Fac Res Peak Influence 555 | . 365 128 . . 438 182 198 102 129 555 Initial 99 | . . 83 . . . 99 88 23 49 67 Average 161 | . 191 107 . . 229 153 122 41 93 281 Maximum Alert Level 2 | . 1 . . . 2 . . . . 2 Low Security (%) 68 | 100 47 100 . 100 37 100 100 100 100 31 Level 1 26 | . 52 . . . 53 . . . . 49 Level 2 4 | . . . . . 8 . . . . 18 Level 3 . | . . . . . . . . . . . Level 4 . | . . . . . . . . . . . Level 5 . | . . . . . . . . . . . High Security . | . . . . . . . . . . . Max Security . | . . . . . . . . . . . Squads Dispatched 17 | . 2 . . . 2 . 3 3 1 6 Investigation 7 | . 1 . . . 1 . 1 1 . 3 Extermination 2 | . . . . . . . 1 1 . . Reinforcement 8 | . 1 . . . 1 . 1 1 1 3 Assault . | . . . . . . . . . . . Garrison . | . . . . . . . . . . . Intercept . | . . . . . . . . . . . Searches Triggered . | . . . . . . . . . . . Construction Impeded 2 | . . . . . 1 . 1 . . . Haulers Reinforced . | . . . . . . . . . . . Active Scanning Responses . | . . . . . . . . . . . Cargo Convoy Interrupts . | . . . . . . . . . . . Stealth | -11 -10 -10 -10 -9 -8 -7 -6 -5 -4 -3 --------- Run | Yrd Mat Min Exi Min Mat Fac Fac Fac Fac Res Distress Signals 7 | . 1 . . . 2 . 1 . 1 2 Communications Jammed . | . . . . . . . . . . . Distress Signals . | . . . . . . . . . . . Times Spotted 115 | . 21 2 . . 22 2 7 10 6 45 Peak Tracking Total 13 | . 5 2 . . 8 1 3 5 6 13 Tactical Retreats 13 | . . 1 . . 1 . . 2 1 8 Traps | -11 -10 -10 -10 -9 -8 -7 -6 -5 -4 -3 ------- Run | Yrd Mat Min Exi Min Mat Fac Fac Fac Fac Res Traps Triggered 7 | . 3 . . . . . 2 . . 2 Indirectly . | . . . . . . . . . . . Trap Hack Attempts . | . . . . . . . . . . . Triggered . | . . . . . . . . . . . Disarmed . | . . . . . . . . . . . Reprogrammed . | . . . . . . . . . . . Reused . | . . . . . . . . . . . Traps Extracted . | . . . . . . . . . . . Installed . | . . . . . . . . . . . Triggered . | . . . . . . . . . . . Machines | -11 -10 -10 -10 -9 -8 -7 -6 -5 -4 -3 ---------- Run | Yrd Mat Min Exi Min Mat Fac Fac Fac Fac Res Machines Disabled 4 | . . . . . 2 . 1 . 1 . Max in Single Turn 1 | . . . . . 1 . 1 . 1 . Machines Repaired . | . . . . . . . . . . . Machines Dismantled . | . . . . . . . . . . . Machines Sabotaged . | . . . . . . . . . . . Overloaded Fab Kills . | . . . . . . . . . . . Hacking | -11 -10 -10 -10 -9 -8 -7 -6 -5 -4 -3 --------- Run | Yrd Mat Min Exi Min Mat Fac Fac Fac Fac Res Machines Accessed 23 | . 5 . 1 . 5 1 1 5 2 3 Terminals 21 | . 5 . . . 5 1 1 5 2 2 Fabricators . | . . . . . . . . . . . Repair Stations 1 | . . . . . . . . . . 1 Recycling Units . | . . . . . . . . . . . Scanalyzers . | . . . . . . . . . . . Garrison Access . | . . . . . . . . . . . Total Hacks 63 | . 10 . 1 . 16 6 3 13 6 8 Successful 28 | . 1 . 1 . 5 6 2 6 3 4 Failed 35 | . 9 . . . 11 . 1 7 3 4 Catastrophic 10 | . 5 . . . 1 . . 1 1 2 Database Lockouts . | . . . . . . . . . . . Manual 47 | . 10 . 1 . 16 2 3 6 4 5 Terminals 60 | . 10 . . . 16 6 3 13 6 6 Fabricators . | . . . . . . . . . . . Repair Stations 2 | . . . . . . . . . . 2 Recycling Units . | . . . . . . . . . . . Scanalyzers . | . . . . . . . . . . . Garrison Access . | . . . . . . . . . . . Terminal Hacks 19 | . . . 1 . 3 5 1 4 3 2 Record 6 | . . . . . . 1 . 2 1 2 Robot Analysis 1 | . . . . . . . . . 1 . Open DSF 1 | . . . . . . . . 1 . . Level Access Points 5 | . . . . . 1 1 1 1 1 . Unreport Threat 1 | . . . . . 1 . . . . . Transport Status 1 | . . . . . . 1 . . . . Recall Investigation 1 | . . . . . 1 . . . . . Hauler Manifests 1 | . . . . . . 1 . . . . Zone Layout 1 | . . . . . . 1 . . . . Derelict Proto ID Bank 1 | . . . 1 . . . . . . . Fabricator Hacks . | . . . . . . . . . . . Repair Station Hacks 2 | . . . . . . . . . . 2 Scan Component 1 | . . . . . . . . . . 1 Repair 1 | . . . . . . . . . . 1 Recycling Unit Hacks . | . . . . . . . . . . . Scanalyzer . | . . . . . . . . . . . Garrison Access Hacks . | . . . . . . . . . . . Unauthorized Hacks 7 | . 1 . . . 2 1 1 2 . . Terminals 7 | . 1 . . . 2 1 1 2 . . Assimilate 1 | . . . . . . . . 1 . . Botnet 1 | . . . . . 1 . . . . . Operators 5 | . 1 . . . 1 1 1 1 . . Fabricators . | . . . . . . . . . . . Repair Stations . | . . . . . . . . . . . Recycling Units . | . . . . . . . . . . . Scanalyzers . | . . . . . . . . . . . Garrison Access . | . . . . . . . . . . . Data Cores Recovered 2 | . . . . . 1 1 . . . . Used . | . . . . . . . . . . . Hacking Detections 21 | . 5 . . . 5 1 1 5 2 2 Full Trace Events 4 | . . . . . 1 . . 1 . 2 Feedback Events . | . . . . . . . . . . . Feedback Blocked . | . . . . . . . . . . . Robot Schematics Acquired . | . . . . . . . . . . . Robots Built . | . . . . . . . . . . . Authchips . | . . . . . . . . . . . Time . | . . . . . . . . . . . Total Robot Build Rating . | . . . . . . . . . . . Part Schematics Acquired . | . . . . . . . . . . . Parts Built . | . . . . . . . . . . . Authchips . | . . . . . . . . . . . Time . | . . . . . . . . . . . Total Part Build Rating . | . . . . . . . . . . . Parts Repaired 1 | . . . . . . . . . . 1 Time 44 | . . . . . . . . . . 44 Parts Recycled . | . . . . . . . . . . . Recycled Matter . | . . . . . . . . . . . Retrieved Matter . | . . . . . . . . . . . Retrieved Components . | . . . . . . . . . . . Parts Scanalyzed . | . . . . . . . . . . . Part Schematics Acquired . | . . . . . . . . . . . Parts Damaged . | . . . . . . . . . . . Bothacking | -11 -10 -10 -10 -9 -8 -7 -6 -5 -4 -3 ------------ Run | Yrd Mat Min Exi Min Mat Fac Fac Fac Fac Res Used RIF Installer . | . . . . . . . . . . . Robots Hacked . | . . . . . . . . . . . Non-combat . | . . . . . . . . . . . Combat . | . . . . . . . . . . . Robot Hacks Applied . | . . . . . . . . . . . Relay Couplers Released 4 | . . . . . . . 4 . . . Programmers 4 | . . . . . . . 4 . . . Fabnet Peak Effective % . | . . . . . . . . . . . Robots Rewired . | . . . . . . . . . . . Allies Hacked . | . . . . . . . . . . . Hacks Repelled . | . . . . . . . . . . . Allies | -11 -10 -10 -10 -9 -8 -7 -6 -5 -4 -3 -------- Run | Yrd Mat Min Exi Min Mat Fac Fac Fac Fac Res Total Allies 1 | . . . . 1 . . . . . . Largest Group 1 | . . . . 1 1 . . . . . Highest-Rated Group 31 | . . . . 31 31 . . . . . Highest-Rated Ally 31 | . . . . 31 31 . . . . . Total Orders . | . . . . . . . . . . . Ally Attacks 8 | . . . . . 8 . . . . . Total Damage 130 | . . . . . 130 . . . . . Kills 5 | . . . . . 5 . . . . . Allies Corrupted . | . . . . . . . . . . . Allies Melted . | . . . . . . . . . . . Intel | -11 -10 -10 -10 -9 -8 -7 -6 -5 -4 -3 ------- Run | Yrd Mat Min Exi Min Mat Fac Fac Fac Fac Res Robot Analysis Total 1 | . . . . . . . . . 1 . Derelict Logs Recovered 2 | . . 1 . 1 . . . . . . Drone Launches . | . . . . . . . . . . . Drone Recoveries . | . . . . . . . . . . . Exploration | -11 -10 -10 -10 -9 -8 -7 -6 -5 -4 -3 ------------- Run | Yrd Mat Min Exi Min Mat Fac Fac Fac Fac Res Turns Passed 4095 | 25 515 236 113 139 889 242 532 615 182 607 Spaces Moved 4623 | 40 609 298 222 207 988 355 512 442 245 705 Core 4623 | 40 609 298 222 207 988 355 512 442 245 705 Treads . | . . . . . . . . . . . Legs . | . . . . . . . . . . . Wheels . | . . . . . . . . . . . Hover . | . . . . . . . . . . . Flight . | . . . . . . . . . . . Fastest Speed 50 | 50 50 50 50 50 50 50 50 50 50 50 Average Speed 52 | 50 50 50 50 50 51 50 51 50 60 57 Slowest Speed 200 | 50 100 100 50 50 150 50 200 50 150 200 Overloaded Moves . | . . . . . . . . . . . Propulsion Burnouts . | . . . . . . . . . . . Robots Hopped . | . . . . . . . . . . . Cave-ins Triggered . | . . . . . . . . . . . Exploration Rate (%) 33 | 4 82 50 61 53 46 11 13 17 9 21 Regions Visited 10 Branch Regions 3 Pre-discovered Areas . | . . . . . . . . . . . Known Exits Taken 5 | . . . . . 1 1 1 1 1 . Unknown Exits Taken 5 | 1 1 1 1 1 . . . . . . Scrap Searched 1 | . . 1 . . . . . . . . Spaces Dug 53 | . . . . . 22 3 15 9 3 1 Terrain Destroyed 126 | . . . . . 56 3 26 9 5 27 Melee 49 | . . . . . 22 3 15 9 . . Projectile 9 | . . . . . . . . . 5 4 AOE 67 | . . . . . 34 . 11 . . 22 Terrain Rammed . | . . . . . . . . . . . Walls Destroyed . | . . . . . . . . . . . Machines Disabled . | . . . . . . . . . . . Actions | -11 -10 -10 -10 -9 -8 -7 -6 -5 -4 -3 --------- Run | Yrd Mat Min Exi Min Mat Fac Fac Fac Fac Res Total 5983 | 43 743 377 223 241 1286 396 728 811 271 864 Wait 982 | . 59 70 . 34 200 9 162 344 10 94 Move 4614 | 39 608 297 221 206 987 354 511 441 245 705 Hop . | . . . . . . . . . . . Pick Up 18 | 2 6 . 1 . 4 2 2 . . 1 Fast Attach 35 | 2 5 1 . . 5 4 7 1 1 9 Attach 18 | . . 1 . . 4 1 3 1 2 6 Detach 18 | . 1 3 . . 2 1 . 1 2 8 Swap 9 | . 6 . . . 2 . 1 . . . Drop 21 | . 11 1 1 . 3 3 1 . . 1 Fire 100 | . 47 4 . 1 11 . 1 3 8 25 Melee 144 | . . . . . 68 22 40 14 . . Ram 24 | . . . . . . . . 6 3 15 Kick . | . . . . . . . . . . . Crush . | . . . . . . . . . . . Escape Stasis . | . . . . . . . . . . . Rewire . | . . . . . . . . . . . Trap . | . . . . . . . . . . . Miscellaneous . | . . . . . . . . . . . Route ------- -11/Scrapyard -10/Materials (discovered 3 exits: [*Mat x2] / [*Min]) -10/Mines -10/Exiles (discovered 2 exits: [*Min x2]) -9/Mines -8/Materials (discovered 5 exits: *Fac x3 / *Sto x2) -7/Factory (discovered 5 exits: *Fac x4 / [*Low]) -6/Factory (discovered 4 exits: *Fac x4) -5/Factory (discovered 5 exits: *Fac x4 / [*Upp]) -4/Factory (discovered 4 exits: *Res x4) -3/Research History --------- Turn | Location | Event 5 | -11/Scrapyard | Discovered new exit (range 16) 26 | -11/Scrapyard | Entered Materials 174 | -10/Materials | Discovered new exit (range 17) 315 | -10/Materials | Build established: Mutant 318 | -10/Materials | Core integrity fell below 50% 381 | -10/Materials | Discovered new exit (range 18) 424 | -10/Materials | Discovered new exit (range 13) 490 | -10/Materials | Core integrity fell below 20% 541 | -10/Materials | Entered Mines 545 | -10/Mines | YI-UF0 nonchalantly dropped a Grenade Launcher on the ground 561 | -10/Mines | Found a damaged Exp. Sensor Array with a note attached 563 | -10/Mines | Found Prototype Device 563 | -10/Mines | Identified Exp. Sensor Array 772 | -10/Mines | Learned Materials stockpile data 775 | -10/Mines | Deemed a non-threat by the Exiles lab entrance 775 | -10/Mines | Discovered new exit (range 5) 777 | -10/Mines | Entered Exiles 784 | -10/Exiles | Discovered new exit (range 15) 790 | -10/Exiles | Met 8R-AWN 798 | -10/Exiles | Met EX-HEX 816 | -10/Exiles | Met EX-BIN 823 | -10/Exiles | Aligned with FarCom system 824 | -10/Exiles | Given EX-Vault access code 836 | -10/Exiles | Opened EX-Vault 839 | -10/Exiles | Found Longsword +1 850 | -10/Exiles | Warned to stay clear of 0b10 Research branches 859 | -10/Exiles | Exiles lab attacked by MAIN.C 883 | -10/Exiles | Discovered new exit (range 14) 890 | -10/Exiles | Left Exiles lab with Longsword +1 890 | -10/Exiles | Entered Mines 940 | -9/Mines | Received a Mining Laser from a helpful Derelict 958 | -9/Mines | Assembled infested the area 989 | -9/Mines | Discovered new exit (range 15) 1029 | -9/Mines | Entered Materials 1029 | -8/Materials | Accompanied by 1 ally 1029 | -8/Materials | Evolved 4 slots: Utility x4 1030 | -8/Materials | Identified exit to Storage 1468 | -8/Materials | Destroyed 8 combat bots 1763 | -8/Materials | Build established: Hacker-Scout 1788 | -8/Materials | Identified exit to Factory 1916 | -8/Materials | Discovered exit to Storage (range 19) 1918 | -8/Materials | Entered Factory 1918 | -7/Factory | Evolved 2 slots: Utility x2 1955 | -7/Factory | Identified exit to Factory 1959 | -7/Factory | Discovered new exit (range 15) 2160 | -7/Factory | Entered another Factory area 2160 | -6/Factory | Evolved 2 slots: Utility x2 2297 | -6/Factory | Identified exit to Factory 2632 | -6/Factory | Lost 6 parts (4u2w) 2682 | -6/Factory | Found Prototype Launcher 2692 | -6/Factory | Entered another Factory area 2692 | -5/Factory | Evolved 2 slots: Utility x2 3190 | -5/Factory | Identified exit to Factory 3209 | -5/Factory | Spotted B-75 Beast 3281 | -5/Factory | Discovered new exit (range 6) 3307 | -5/Factory | Entered another Factory area 3307 | -4/Factory | Evolved 2 slots: Utility x2 3369 | -4/Factory | Identified exit to Research 3489 | -4/Factory | Entered Research 3489 | -3/Research | Evolved 2 slots: Utility x2 3575 | -3/Research | Repaired Adv. Assault Cannon 3678 | -3/Research | Lost 3 parts (2u1w) 3682 | -3/Research | Identified Scatter Rocket Array 3823 | -3/Research | Core integrity fell below 50% 3853 | -3/Research | Lost 4 parts (4u) 4061 | -3/Research | Core integrity fell below 20% 4096 | -3/Research | System corruption reached 10% 4096 | -3/Research | Core destroyed Last Messages --------------- 04014_ Wall collapses. 04048_ O-24 Administrator uses terminal to summon reinforcements. 04048_ ALERT: Hostiles spotted, dispatching reinforcements to Terminal R005. 04048_ O-24 Administrator locks terminal. 04048_ W-44 Eye sends out distress signal. 04049_ Slammed into K-01 Serf. 04049_ W-44 Eye sends out distress signal. 04050_ Slug penetrates Door. 04053_ U-05 Engineer builds a Door. 04054_ Slammed into K-01 Serf. 04078_ IB,C7RUPF/= 04091_ Adv. Signal Interpreter broken. 04091_ Destabilizing: Short circuit. 04092_ Slammed into P-80 Master. 04095_ Coolant Network destroyed. 04096_ Slammed into P-80 Master. [Achievement: Tester] Map ----- +----------------------------------------------------+ | ??????????????????????????# # #????? | | ??????????????????????????+ # """ """ #????? | | ??????????????????????????# # """ """ #????" | | ??????????????????????????# + """ """ #??? " | | ??????????????????????????# # """ """ ??????? | | ??????????????????????????# # """ """???????? | | ????????????????########### # """ """????#### | | ????????????????# ! # # """ ""?????# | | ????????????????# + h# ??????# | | ????????????????# """ # # ??????# | | ?????????????????? """ # # ???????# | | ?????????????????? """ ?# h########???????# | | ??????????????????? ?# #??????????????# | | ?????????????????? ??# #??????????????# | | ????????????????? ??# #??????????????# | | ????????????????#######???# #??????????????# | | ??????????????????????????# #??????????????# | | ?????????????############## #??????????????# | | ?????????????# # #??????????????# | | ?????????????# # #??????????????#### | | ?????????????# = # #?????????????????? | | ?????????????# # #?????????????????? | | ?????????????# # #?????????????????? | | ?????????????# + #?????????????????? | | ?????????????# p# #?????????????????? | | ?????????????# @/ #?????????????????? | | ?????????????# p ######?????????????????? | | ?????????????# #????????????#?######??? | | ?????????????# #????????????# ??? | | ?????????????# #????????????# ??? | | ?????????????##############????????????# " ??? | | ???????????????????????????????????????# "" """ | | ???????????????????????????????????????# G """ | | ???????????????????????????????????????# "" """ | | ???????????????????????????????????????# " """ | | ???????????????????????????????????????# """ | | ???????????????????????????????????????# | | ??????????????????#######??????????????# | | ??????????????????# ?????????????# | | ??????????????????# ?############# | | ??????????????????# # #########+# | | ??????????????????# # | | ??????????????????# """ + | | ??????????????????# """ # | | ??????????????????? """ # " | | ??????????????????? * ?# """ ### " | | ??????????????????? ?# """ !!! #?# " | | ???????????????##########??# """ !!! #?# " | | ???????????????# ??????# !!! #?# " | | ???????????????# ?????# #?# " | +----------------------------------------------------+ Best States ------------- Heat Dissipation 46 Energy Generation 10 Energy Capacity 125 Matter Stores 300 Matter Capacity 300 Sight Range 20 Robot Scan Range 20 Terrain Scan Range 24 Terrain Scan Density 10 Evasion (%) 50 Targeting Accuracy 5 Melee Accuracy 6 Offensive Hacking 40 Defensive Hacking 20 Item Schematics ----------------- None Robot Schematics ------------------ None Fabricated ------------ Nothing Alien Tech Used ----------------- None Achievements -------------- Party Time Tester Challenges ------------ None Game ------ Seed TransportCoolantPenetrator Manual? 0 Play Time 00:54:29 Cumulative 48.9 hours Start 2024.04.26 @ 14:58:48 End 2024.04.26 @ 15:52:54 Sessions 1 Manual Loads 0 Difficulty Rogue Special Mode None Game No. 73 Rogue 73 Adventurer 0 Explorer 0 Win Type - Total 0 Types 0/0/0/0/0/0/0/0/0 Lore% 45 Gallery% 50 Achievement% 34 Wizard Run 0 Options --------- Layout 1 ASCII 0 Keyboard 1 Movement Arrows Keybinds 0 Fullscreen 2 Font 24/Smallcaps Map View 50x35 Zoom Use 0% Tactical HUD 1 Map Filters NONE Filters NONE Steam 1 RUN: f612072f-73f7-41c6-a3c6-709293b44d54